bitfinex/quotes_SOLUSD_20220103
["timestamp","ask_amount","ask_price","bid_price","bid_amount"]
[1641231597943,8.7717,171.06,170.98,79.1823]
[1641231598745,29.31734429,171.05,170.98,79.1823]
[1641231599344,29.31734429,171.05,170.99,8.7717]
[1641231599548,38.34924429,171.05,170.95,1.2689]
[1641231599745,45.23824429,171.05,170.95,1.2689]
[1641231599944,45.73824429,171.05,170.95,1.2689]
[1641231600346,45.73824429,171.05,170.95,11.74906572]
[1641231600546,45.73824429,171.05,170.95,2.97596572]
[1641231601445,38.84924429,171.05,170.95,2.97596572]
[1641231601846,38.34924429,171.05,170.95,2.97596572]
[1641231602149,38.34924429,171.05,170.95,3.23596572]
[1641231602374,38.34924429,171.05,170.95,12.00946572]
[1641231604381,38.34924429,171.05,170.95,14.32545172]
[1641231604783,38.08924429,171.05,170.95,14.32545172]
[1641231604979,10.0027,171.07,170.96,8.4]
[1641231605280,10.0027,171.07,171.0,8.771]
[1641231605479,8.7712,171.07,171.0,11.36609991]
[1641231606078,9.0312,171.07,171.0,11.36609991]
[1641231606279,9.0312,171.07,171.0,2.59509991]
[1641231606477,9.0312,171.07,171.0,2.33509991]
[1641231606881,9.0312,171.07,170.96,1.3095]
[1641231607080,9.0312,171.07,170.96,1.5695]
[1641231607283,9.5312,171.07,170.96,1.5695]
[1641231607883,9.5312,171.07,170.97,2.85876788]
[1641231608081,9.5312,171.07,170.97,3.11876788]
[1641231608482,9.0312,171.07,170.97,11.63086788]
[1641231608884,9.5312,171.07,170.97,11.63086788]
[1641231610788,9.5312,171.07,170.97,2.85876788]
[1641231611989,9.5312,171.07,170.97,11.89136788]
[1641231612189,9.0312,171.07,170.97,11.89136788]
[1641231614289,9.0312,171.07,170.97,11.63136788]
[1641231614490,9.0312,171.07,170.97,11.89136788]
[1641231616394,8.7712,171.07,170.97,11.89136788]
[1641231617899,9.0312,171.07,170.97,11.89136788]
[1641231618593,9.0312,171.07,170.97,14.20735388]
[1641231621696,9.0312,171.07,170.97,11.348586]
[1641231621895,9.5312,171.07,170.97,11.348586]
[1641231622496,9.5312,171.07,170.97,2.315986]
[1641231623598,10.95789368,171.07,170.97,2.315986]
[1641231624401,8.4,171.06,170.97,2.315986]
[1641231624600,8.776,171.02,170.97,2.315986]
[1641231624800,31.48952343,171.01,170.97,2.315986]
[1641231625002,31.74952343,171.01,170.97,2.315986]
[1641231625202,32.24952343,171.01,170.97,2.315986]
[1641231626410,8.776,170.99,170.97,2.315986]
[1641231628732,8.776,170.99,170.98,3.03219997]
[1641231628931,8.776,170.99,170.94,2.94222668]
[1641231629334,8.776,170.99,170.94,0.26]
[1641231629532,8.776,170.99,170.93,74.4141]
[1641231630334,8.776,170.99,170.94,2.91575617]
[1641231632438,8.776,170.99,170.94,3.17575617]
[1641231634041,8.776,170.99,170.94,2.91575617]
[1641231639847,8.776,170.99,170.93,76.470085]
[1641231640046,8.776,170.99,170.93,76.730085]
[1641231640647,8.776,170.99,170.93,74.4141]
[1641231640847,8.776,170.99,170.94,2.80389555]
[1641231642450,8.776,170.99,170.94,5.11988155]
[1641231644958,8.776,170.99,170.94,5.37988155]
[1641231646460,8.776,170.99,170.94,5.11988155]
[1641231648963,8.776,170.99,170.94,5.37988155]
[1641231651865,8.776,170.99,170.94,2.575986]
[1641231652863,8.776,170.99,170.94,5.51784216]
[1641231659099,8.776,170.99,170.94,2.315986]
[1641231659399,9.036,170.99,170.94,2.315986]
[1641231660400,9.536,170.99,170.94,2.315986]
[1641231664418,9.036,170.99,170.94,2.315986]
[1641231664819,8.776,170.99,170.94,2.315986]
[1641231667847,8.776,170.99,170.94,5.20450202]
[1641231669049,8.776,170.99,170.94,5.46450202]
[1641231670151,8.776,170.99,170.94,2.575986]
[1641231670757,8.776,170.99,170.94,2.315986]
[1641231671453,9.036,170.99,170.94,2.315986]
[1641231680269,9.536,170.99,170.94,2.315986]
[1641231681869,10.96269368,170.99,170.94,2.315986]
[1641231682069,66.0,170.98,170.85,24.0423]
[1641231682270,66.0,170.98,170.84,1.3239]
[1641231682271,8.7792,170.92,170.84,1.3239]
[1641231682474,27.2211004,170.91,170.84,1.3239]
[1641231682872,27.9811004,170.91,170.84,1.3239]
[1641231683272,27.9811004,170.91,170.83,93.7]
[1641231683474,8.7806,170.88,170.84,2.315986]
[1641231683674,30.06050228,170.87,170.84,2.315986]
[1641231684273,30.06050228,170.87,170.85,6.06439992]
[1641231684673,30.06050228,170.87,170.84,2.315986]
[1641231685295,8.7816,170.86,170.84,2.315986]
[1641231687497,9.0416,170.86,170.84,2.315986]
[1641231688097,9.0416,170.86,170.84,0.005986]
[1641231688396,106.5552,170.85,170.84,0.005986]
[1641231688595,40.8152,170.85,170.75,169.1]
[1641231688998,42.74189368,170.85,170.75,169.1]
[1641231689497,49.23389368,170.85,170.75,169.1]
[1641231690103,154.24389368,170.85,170.75,169.1]
[1641231690303,154.24389368,170.85,170.67,78.1855]
[1641231690508,227.92829368,170.85,170.68,2.2219181]
[1641231693907,227.92829368,170.85,170.68,2.4819181]
[1641231696810,229.57336503,170.85,170.68,2.4819181]
[1641231697010,228.81336503,170.85,170.68,2.4819181]
[1641231697212,115.88467135,170.85,170.68,19.6690181]
[1641231697412,115.88467135,170.85,170.68,21.09571178]
[1641231698010,114.2396,170.85,170.68,21.09571178]
[1641231698216,114.2396,170.85,170.69,1.2682]
[1641231698511,114.9996,170.85,170.7,8.786]
[1641231698915,114.9996,170.85,170.7,9.046]
[1641231699116,114.4996,170.85,170.7,9.046]
[1641231699920,114.2396,170.85,170.7,9.046]
[1641231700220,40.5552,170.85,170.7,18.87269368]
[1641231700417,8.7852,170.85,170.7,18.87269368]
[1641231700619,8.2852,170.85,170.7,18.87269368]
[1641231702120,8.5452,170.85,170.7,18.61269368]
[1641231702326,9.0452,170.85,170.7,17.186]
[1641231703327,8.5452,170.85,170.7,18.61269368]
[1641231703554,8.5452,170.85,170.7,17.446]
[1641231703722,9.0452,170.85,170.7,17.446]
[1641231707532,31.7681,170.85,170.7,17.186]
[1641231708840,40.1681,170.85,170.7,17.186]
[1641231709135,41.59479368,170.85,170.7,17.186]
[1641231709337,41.59479368,170.85,170.7,19.761986]
[1641231710138,41.09479368,170.85,170.7,19.761986]
[1641231710940,41.59479368,170.85,170.7,19.761986]
[1641231711164,41.33479368,170.85,170.7,19.761986]
[1641231711369,40.83479368,170.85,170.7,19.761986]
[1641231711571,9.71189368,170.85,170.7,19.761986]
[1641231711767,9.71189368,170.85,170.7,21.18867968]
[1641231711965,1.42669368,170.85,170.7,21.18867968]
[1641231712770,30.06050228,170.87,170.7,21.18867968]
[1641231712968,30.06050228,170.87,170.71,1.2814]
[1641231713169,8.7813,170.87,170.79,8.7813]
[1641231713371,8.7813,170.87,170.8,2.8383904]
[1641231713573,8.7813,170.87,170.8,3.0983904]
[1641231714371,8.7813,170.87,170.8,11.8794904]
[1641231714771,8.7807,170.89,170.8,11.8794904]
[1641231715374,23.72669106,170.88,170.8,11.8794904]
[1641231715773,8.7807,170.89,170.8,11.8794904]
[1641231717576,9.0407,170.89,170.8,11.8794904]
[1641231720480,9.0407,170.89,170.8,9.0411]
[1641231720781,9.0407,170.89,170.78,8.782]
[1641231720979,9.5407,170.89,170.78,8.782]
[1641231721383,9.5407,170.89,170.76,76.8266]
[1641231721580,9.0407,170.89,170.77,2.75854158]
[1641231721782,10.68577135,170.89,170.77,11.54154158]
[1641231722182,10.68577135,170.89,170.77,19.94154158]
[1641231722386,9.0407,170.89,170.77,19.94154158]
[1641231722782,8.7807,170.89,170.77,20.20154158]
[1641231724486,9.0407,170.89,170.77,20.20154158]
[1641231724985,8.7807,170.89,170.77,20.20154158]
[1641231727689,8.7796,170.9,170.77,20.20154158]
[1641231727895,8.7796,170.9,170.77,21.62823526]
[1641231728091,30.91217135,170.94,170.77,21.62823526]
[1641231728291,1.90507135,170.94,170.78,22.966]
[1641231728493,1.90507135,170.94,170.85,8.7786]
[1641231728693,8.779,170.92,170.85,8.7786]
[1641231729091,9.039,170.92,170.85,8.7786]
[1641231730017,9.039,170.92,170.85,9.0386]
[1641231730215,8.779,170.92,170.85,9.0386]
[1641231730416,9.039,170.92,170.85,9.0386]
[1641231733118,8.539,170.92,170.85,9.0386]
[1641231738129,27.23392093,170.93,170.85,9.0386]
[1641231738931,8.7778,170.94,170.85,9.0386]
[1641231739132,0.5,170.94,170.85,9.0386]
[1641231739532,0.5,170.94,170.85,17.4386]
[1641231739833,9.2763,170.97,170.85,17.4386]
[1641231740031,37.57427885,170.97,170.85,17.4386]
[1641231740733,37.57427885,170.97,170.85,18.77]
[1641231741534,37.83427885,170.97,170.85,18.77]
[1641231741935,37.33427885,170.97,170.85,18.77]
[1641231742538,37.07427885,170.97,170.85,18.77]
[1641231747647,37.07427885,170.97,170.85,18.51]
[1641231748045,37.33427885,170.97,170.85,18.51]
[1641231748444,43.46727885,170.97,170.82,72.7343]
[1641231748666,8.7802,170.89,170.82,72.7343]
[1641231749068,36.7458689,170.89,170.82,72.7343]
[1641231749270,37.0058689,170.89,170.82,75.07750482]
[1641231749773,37.0058689,170.89,170.82,75.33750482]
[1641231749971,36.7458689,170.89,170.82,75.33750482]
[1641231750179,27.9656689,170.89,170.82,84.11820482]
[1641231751185,36.7457689,170.89,170.82,83.85820482]
[1641231752478,37.0057689,170.89,170.82,8.7807]
[1641231752876,37.0057689,170.89,170.82,2.315986]
[1641231753282,37.0057689,170.89,170.82,4.61593364]
[1641231754679,36.7457689,170.89,170.82,4.61593364]
[1641231755782,36.7457689,170.89,170.82,4.87593364]
[1641231755981,36.7457689,170.89,170.82,4.61593364]
[1641231756484,36.7457689,170.89,170.82,4.87593364]
[1641231758382,37.0057689,170.89,170.82,4.87593364]
[1641231758784,37.0057689,170.89,170.82,4.61593364]
[1641231759812,36.7457689,170.89,170.82,13.39653364]
[1641231759987,8.7801,170.89,170.82,13.39653364]
[1641231760483,8.7801,170.89,170.82,13.65653364]
[1641231762787,8.7801,170.89,170.82,13.39653364]
[1641231762990,8.7801,170.89,170.82,8.7806]
[1641231763391,9.0401,170.89,170.82,8.7806]
[1641231763997,9.0401,170.89,170.81,8.7811]
[1641231764998,9.0401,170.89,170.81,11.357085]
[1641231765802,9.0401,170.89,170.81,11.097085]
[1641231766899,8.7801,170.89,170.81,11.097085]
[1641231767101,8.7801,170.89,170.81,11.357085]
[1641231768524,35.30179726,170.9,170.81,11.357085]
[1641231768723,26.52209726,170.9,170.81,11.357085]
[1641231769524,35.30169726,170.9,170.81,11.357085]
[1641231773333,26.52209726,170.9,170.81,11.357085]
[1641231773539,26.52209726,170.9,170.81,11.097085]
[1641231774935,26.52209726,170.9,170.81,11.357085]
[1641231775938,35.56179726,170.9,170.81,11.357085]
[1641231776241,35.30179726,170.9,170.81,11.357085]
[1641231776538,35.56179726,170.9,170.81,11.357085]
[1641231776937,36.06179726,170.9,170.81,11.357085]
[1641231777338,35.56179726,170.9,170.81,11.357085]
[1641231777537,36.06179726,170.9,170.81,11.357085]
[1641231778140,35.30179726,170.9,170.81,11.357085]
[1641231778342,35.80179726,170.9,170.81,11.357085]
[1641231779240,35.56179726,170.9,170.81,11.097085]
[1641231779440,36.06179726,170.9,170.81,11.097085]
[1641231779643,36.06179726,170.9,170.81,2.315985]
[1641231780643,58.57789726,170.9,170.81,2.315985]
[1641231782247,60.22296861,170.9,170.81,2.315985]
[1641231784260,70.04966229,170.9,170.81,2.315985]
[1641231785462,1.64507135,170.87,170.81,2.315985]
[1641231785661,8.7852,170.84,170.81,2.315985]
[1641231785860,9.2852,170.84,170.81,2.315985]
[1641231786081,9.5452,170.84,170.81,2.315985]
[1641231791983,9.0452,170.84,170.81,2.315985]
[1641231792181,9.5452,170.84,170.81,2.315985]
[1641231794790,9.0452,170.84,170.81,2.315985]
[1641231796090,8.7852,170.84,170.81,2.315985]
[1641231796390,37.74857299,170.86,170.81,2.315985]
[1641231796592,1.64507135,170.87,170.81,2.575985]
[1641231797290,24.16117135,170.9,170.81,2.575985]
[1641231797491,24.1477934,170.89,170.81,2.575985]
[1641231798095,24.1477934,170.89,170.81,11.356985]
[1641231799293,32.9281934,170.89,170.81,11.356985]
[1641231799694,8.7804,170.89,170.81,11.356985]
[1641231799896,22.5161,170.9,170.81,11.356985]
[1641231800096,22.5161,170.9,170.81,25.955985]
[1641231801997,8.7797,170.91,170.81,25.955985]
[1641231804006,24.10192257,170.92,170.81,25.955985]
[1641231804306,24.60192257,170.92,170.81,25.955985]
[1641231805627,33.38092257,170.92,170.81,25.955985]
[1641231806528,33.38092257,170.92,170.81,25.695985]
[1641231807028,33.64092257,170.92,170.81,25.695985]
[1641231807430,58.42822257,170.92,170.81,25.695985]
[1641231807630,57.92822257,170.92,170.81,25.695985]
[1641231807831,58.16822257,170.92,170.81,25.955985]
[1641231810540,58.16822257,170.92,170.81,17.441]
[1641231811942,57.92822257,170.92,170.81,17.441]
[1641231812342,58.42822257,170.92,170.81,17.181]
[1641231812542,59.68692257,170.92,170.8,1.2328]
[1641231812744,59.68692257,170.92,170.79,33.0871]
[1641231813943,59.68692257,170.92,170.79,33.3471]
[1641231814142,59.68692257,170.92,170.8,1.2977]
[1641231814343,59.68692257,170.92,170.8,10.0791]
[1641231814545,59.68692257,170.92,170.8,10.3391]
[1641231817849,1.64507135,170.91,170.8,10.3391]
[1641231818047,8.7804,170.89,170.8,10.3391]
[1641231819951,8.7804,170.89,170.8,10.0791]
[1641231821554,8.7804,170.89,170.8,10.3391]
[1641231822757,28.2995408,170.88,170.8,10.3391]
[1641231832897,8.7804,170.89,170.8,10.3391]
[1641231833099,26.43237135,170.92,170.8,18.7391]
[1641231833399,1.64507135,170.92,170.8,18.7391]
[1641231833598,1.64507135,170.92,170.81,1.42669368]
[1641231833804,26.19277135,170.95,170.82,8.4]
[1641231833999,49.49483538,170.95,170.87,8.7772]
[1641231834399,1.64507135,170.95,170.87,15.7232]
[1641231835199,1.64507135,170.95,170.87,17.0031]
[1641231835606,26.07256311,170.98,170.87,17.0031]
[1641231836701,24.42749176,170.98,170.87,17.0031]
[1641231837801,24.42749176,170.98,170.87,10.3171]
[1641231838603,24.42749176,170.98,170.87,10.0571]
[1641231838803,24.68749176,170.98,170.87,10.0571]
[1641231839004,24.4803,170.97,170.87,10.0571]
[1641231839406,24.7403,170.97,170.87,10.0571]
[1641231839606,8.7774,170.95,170.87,10.0571]
[1641231840006,8.7774,170.95,170.87,12.633085]
[1641231845011,8.7766,170.96,170.87,21.033085]
[1641231845211,26.07256311,170.98,170.87,21.033085]
[1641231845613,1.64507135,170.98,170.87,21.033085]
[1641231846510,25.38807135,171.0,170.87,21.033085]
[1641231846712,23.41224447,170.99,170.87,45.696385]
[1641231850339,23.41224447,170.99,170.87,43.3804]
[1641231855743,23.41224447,170.99,170.87,44.80709368]
[1641231855945,24.8687,171.01,170.87,44.80709368]
[1641231856146,24.8687,171.01,170.87,118.90559368]
[1641231856844,23.68738867,171.0,170.87,118.90559368]
[1641231858548,23.68738867,171.0,170.87,117.2189]
[1641231858951,22.5916,170.99,170.87,117.2189]
[1641231859149,8.7766,170.97,170.87,117.2189]
[1641231859952,8.7766,170.97,170.87,117.4789]
[1641231860654,8.7766,170.97,170.87,117.2189]
[1641231861452,8.7766,170.97,170.87,92.5556]
[1641231861855,9.0366,170.97,170.87,92.5556]
[1641231863055,9.0366,170.97,170.87,92.8156]
[1641231863258,9.0366,170.97,170.87,92.5556]
[1641231863458,9.5366,170.97,170.87,92.5556]
[1641231864458,9.5366,170.97,170.87,17.1772]
[1641231864659,9.5366,170.97,170.87,0.26]
[1641231864857,8.779,170.92,170.87,0.26]
[1641231865058,30.32638529,170.91,170.85,9.0385]
[1641231865259,30.32638529,170.91,170.85,8.7785]
[1641231866659,30.32638529,170.91,170.85,9.0385]
[1641231871267,39.10558529,170.91,170.85,9.0385]
[1641231872568,39.10558529,170.91,170.85,0.26]
[1641231872971,39.10558529,170.91,170.84,9.0395]
[1641231882106,39.10558529,170.91,170.84,8.7795]
[1641231884108,39.10558529,170.91,170.83,8.7801]
[1641231884308,39.86558529,170.91,170.75,8.4]
[1641231884509,22.9798,170.9,170.75,8.4]
[1641231884709,8.7829,170.83,170.75,8.4]
[1641231884907,31.50072097,170.83,170.75,8.4]
[1641231885108,31.50072097,170.83,170.76,2.60666045]
[1641231886609,31.50072097,170.83,170.77,8.7832]
[1641231888311,31.50072097,170.83,170.77,9.0432]
[1641231888816,8.7829,170.83,170.77,9.0432]
[1641231896924,8.7829,170.83,170.77,0.26]
[1641231897123,8.7829,170.83,170.76,11.65006045]
[1641231897720,8.7829,170.83,170.76,9.0434]
[1641231898122,8.7829,170.83,170.7,9.6563]
[1641231898321,8.7863,170.77,170.7,9.6563]
[1641231898521,40.18762813,170.77,170.7,9.6563]
[1641231898720,40.18762813,170.77,170.71,2.58011044]
[1641231900624,40.70339227,170.77,170.71,2.08011044]
[1641231900823,40.70339227,170.77,170.69,10.0222]
[1641231901228,41.20339227,170.77,170.68,8.7876]
[1641231901537,41.46339227,170.77,170.68,8.7876]
[1641231901725,41.46339227,170.77,170.66,84.7]
[1641231901928,24.6759,170.76,170.67,2.25554212]
[1641231902126,8.788,170.74,170.67,2.25554212]
[1641231902354,0.85365238,170.73,170.67,11.04354212]
[1641231902555,24.9359,170.76,170.67,11.04354212]
[1641231902951,25.4359,170.76,170.67,11.04354212]
[1641231903557,8.7882,170.73,170.67,11.04354212]
[1641231905557,25.9766,170.76,170.67,19.44354212]
[1641231905957,31.40132813,170.77,170.67,19.44354212]
[1641231906163,1.64507135,170.81,170.67,19.70354212]
[1641231906363,23.0855,170.79,170.67,44.47004212]
[1641231906763,23.0855,170.79,170.67,45.8967358]
[1641231906961,23.0855,170.79,170.68,1.3597]
[1641231907162,23.0855,170.79,170.73,8.7845]
[1641231907374,28.67244456,170.81,170.74,2.52599417]
[1641231907562,28.67244456,170.81,170.74,2.78599417]
[1641231908363,29.90982965,170.81,170.74,2.78599417]
[1641231908563,29.90982965,170.81,170.75,8.784]
[1641231908564,38.69392965,170.81,170.75,8.784]
[1641231908963,38.69392965,170.81,170.75,9.044]
[1641231909164,38.69392965,170.81,170.74,2.52599417]
[1641231909366,8.7841,170.81,170.74,2.52599417]
[1641231909563,8.7841,170.81,170.74,11.31039417]
[1641231909764,10.085,170.82,170.74,11.31039417]
[1641231910165,1.3014,170.82,170.74,11.31039417]
[1641231910566,1.3014,170.82,170.74,11.57039417]
[1641231913471,30.92037135,170.88,170.74,19.97039417]
[1641231913670,1.64507135,170.88,170.74,19.97039417]
[1641231913870,1.64507135,170.88,170.75,1.3181]
[1641231914172,3.28832566,170.92,170.75,1.3181]
[1641231914173,1.64507135,170.91,170.81,8.7798]
[1641231914573,1.18473434,170.9,170.82,2.61681279]
[1641231914973,1.18473434,170.9,170.85,8.7791]
[1641231915375,1.18473434,170.9,170.85,9.0391]
[1641231916174,1.18473434,170.9,170.85,0.26]
[1641231916576,1.18473434,170.9,170.84,9.0396]
[1641231916780,1.18473434,170.9,170.85,2.8606617]
[1641231916980,1.18473434,170.9,170.85,3.1206617]
[1641231917979,8.7793,170.91,170.85,3.1206617]
[1641231918381,8.7793,170.91,170.85,11.8996617]
[1641231918988,9.86785081,170.91,170.85,11.8996617]
[1641231919988,1.08855081,170.91,170.85,11.8996617]
[1641231920392,22.609,170.92,170.85,11.8996617]
[1641231921897,1.64507135,170.96,170.86,8.4]
[1641231922100,1.64507135,170.96,170.91,8.7748]
[1641231922500,24.4114,170.97,170.91,9.0348]
[1641231923000,24.4114,170.97,170.92,2.86106496]
[1641231923203,24.4114,170.97,170.94,8.7743]
[1641231923399,2.69306951,170.99,170.94,8.7743]
[1641231923601,2.69306951,170.99,170.94,9.0343]
[1641231923801,1.04799816,170.99,170.94,9.0343]
[1641231924403,24.86368912,171.0,170.94,9.0343]
[1641231924605,33.1713,171.01,170.94,9.0343]
[1641231924805,33.4313,171.01,170.94,9.0343]
[1641231925503,1.15635405,171.0,170.94,9.0343]
[1641231926204,1.15635405,171.0,170.95,2.64313687]
[1641231926704,63.23147356,171.01,170.95,2.64313687]
[1641231926905,24.3966,171.01,170.95,11.41703687]
[1641231927109,24.3966,171.01,170.95,11.67703687]
[1641231927307,2.95807135,171.03,170.95,11.67703687]
[1641231927509,1.64507135,171.03,170.95,11.67703687]
[1641231927707,2.8797681,171.04,170.95,11.67703687]
[1641231927906,32.35067444,171.04,170.95,11.67703687]
[1641231928109,1.64507135,171.04,170.95,11.67703687]
[1641231928706,59.13177135,171.05,170.95,11.67703687]
[1641231929109,87.46247442,171.05,170.95,11.67703687]
[1641231930011,59.13177135,171.05,170.95,11.67703687]
[1641231930210,50.35947135,171.05,170.95,11.67703687]
[1641231931011,50.35947135,171.05,170.95,20.07703687]
[1641231931413,1.64507135,171.05,170.95,20.07703687]
[1641231932413,1.64507135,171.09,170.95,20.07703687]
[1641231932619,1.64507135,171.09,171.02,8.7681]
[1641231932913,1.26146505,171.1,171.03,2.78319061]
[1641231933116,1.26146505,171.1,171.03,3.04319061]
[1641231933513,25.51557135,171.12,171.03,3.04319061]
[1641231933717,25.51557135,171.12,171.07,8.7672]
[1641231933914,25.51557135,171.12,171.02,8.4]
[1641231933915,1.64507135,171.12,171.02,8.4]
[1641231934720,25.93557135,171.13,171.02,8.4]
[1641231934919,1.36548079,171.12,171.03,2.54454977]
[1641231935119,1.36548079,171.12,171.07,8.7674]
[1641231935517,1.36548079,171.12,171.07,9.0274]
[1641231936117,1.36548079,171.12,171.05,8.768]
[1641231936721,1.36548079,171.12,171.03,2.54454977]
[1641231937122,1.62548079,171.12,171.03,2.54454977]
[1641231937520,10.39458079,171.12,171.03,11.31364977]
[1641231937922,1.36548079,171.12,171.03,11.31364977]
[1641231938522,3.01055214,171.12,171.03,11.31364977]
[1641231939123,3.01055214,171.12,171.03,11.57364977]
[1641231939722,1.36548079,171.12,171.03,11.57364977]
[1641231940324,33.32627135,171.14,171.03,11.57364977]
[1641231940722,31.6812,171.14,171.03,11.57364977]
[1641231941524,1.25785503,171.13,171.03,11.57364977]
[1641231949230,24.55787135,171.14,171.03,13.88963577]
[1641231949426,24.55787135,171.14,171.03,20.84763577]
[1641231949831,22.9128,171.14,171.03,20.84763577]
[1641231950228,1.01999439,171.13,171.03,20.84763577]
[1641231952330,1.01999439,171.13,171.03,13.88963577]
[1641231959238,1.01999439,171.13,171.03,11.57364977]
[1641231959837,1.01999439,171.13,171.03,19.97364977]
[1641231960738,1.01999439,171.13,171.03,19.71364977]
[1641231962368,1.27999439,171.13,171.03,19.71364977]
[1641231963242,31.6807,171.14,171.03,19.71364977]
[1641231963442,22.9128,171.14,171.03,19.71364977]
[1641231963642,22.9128,171.14,171.03,19.97364977]
[1641231963840,22.9128,171.14,171.03,42.75784977]
[1641231964241,1.35933655,171.13,171.03,42.75784977]
[1641231964443,1.35933655,171.13,171.04,1.2773]
[1641231964744,1.35933655,171.13,171.08,11.59471728]
[1641231965144,1.35933655,171.13,171.08,11.85471728]
[1641231965342,1.35933655,171.13,171.08,9.0264]
[1641231968344,1.35933655,171.13,171.08,0.26]
[1641231968546,1.35933655,171.13,171.07,9.0277]
[1641231969445,1.35933655,171.13,171.07,8.7677]
[1641231969649,1.35933655,171.13,171.05,8.7683]
[1641231970848,1.35933655,171.13,171.05,9.0283]
[1641231971048,1.61933655,171.13,171.05,9.0283]
[1641231971249,10.38763655,171.13,171.05,0.26]
[1641231971649,10.88763655,171.13,171.04,9.0293]
[1641231971849,10.12763655,171.13,171.05,2.71051447]
[1641231972152,10.12763655,171.13,171.05,2.97051447]
[1641231972350,1.61933655,171.13,171.05,2.97051447]
[1641231973752,1.35933655,171.13,171.06,8.7679]
[1641231974152,1.35933655,171.13,171.06,9.0279]
[1641231975556,1.35933655,171.13,171.06,8.7679]
[1641231976656,1.35933655,171.13,171.06,9.0279]
[1641231979487,10.12763655,171.13,171.06,8.7679]
[1641231979683,10.12763655,171.13,171.05,8.7688]
[1641231979888,10.12763655,171.13,171.05,9.0288]
[1641231980084,10.38763655,171.13,171.05,9.0288]
[1641231980284,10.38763655,171.13,171.05,11.29839565]
[1641231981183,10.38763655,171.13,171.05,2.52959565]
[1641231981786,10.38763655,171.13,171.05,0.26]
[1641231981984,10.38763655,171.13,171.04,9.0293]
[1641231982785,10.12763655,171.13,171.04,11.95186095]
[1641231983185,10.12763655,171.13,171.04,8.7693]
[1641231983186,1.35933655,171.13,171.04,8.7693]
[1641231983385,2.11933655,171.13,171.0,1.2434]
[1641231983586,1.61933655,171.13,171.0,1.2434]
[1641231983784,2.11933655,171.13,171.0,1.2434]
[1641231984186,1.2349,171.12,171.01,2.99170559]
[1641231984389,8.7699,171.1,171.03,8.7699]
[1641231984589,1.2349,171.12,171.04,2.77442608]
[1641231984990,1.2349,171.12,171.04,3.03442608]
[1641231985191,23.3187,171.15,171.04,10.58842608]
[1641231985389,23.3187,171.15,171.04,39.81222608]
[1641231985591,23.3187,171.15,171.04,18.98842608]
[1641231985994,23.3187,171.15,171.05,1.2938]
[1641231986392,47.41048021,171.15,171.09,8.7668]
[1641231986593,48.51668429,171.15,171.09,8.7668]
[1641231987193,24.42490408,171.15,171.09,8.7668]
[1641231987397,24.42490408,171.15,171.09,9.0268]
[1641231990398,23.3187,171.15,171.09,9.0268]
[1641231990598,1.23,171.16,171.09,9.0268]
[1641231990799,1.64507135,171.19,171.09,17.4268]
[1641231990998,1.64507135,171.19,171.09,18.7052]
[1641231991599,2.56512377,171.2,171.09,18.7052]
[1641231992198,2.56512377,171.2,171.09,41.878]
[1641231993009,1.3132,171.2,171.09,41.878]
[1641231993808,24.1701,171.21,171.09,41.878]
[1641231994010,26.76053787,171.21,171.09,41.878]
[1641231994209,27.26053787,171.21,171.09,41.878]
[1641231995110,26.76053787,171.21,171.09,41.878]
[1641231996140,27.02053787,171.21,171.09,41.878]
[1641231996412,35.78503787,171.21,171.09,41.878]
[1641231996616,36.02503787,171.21,171.09,41.878]
[1641231996815,27.26053787,171.21,171.09,41.878]
[1641231997214,26.76053787,171.21,171.09,41.878]
[1641231997413,27.26053787,171.21,171.09,41.878]
[1641231997815,26.76053787,171.21,171.09,41.618]
[1641231998019,27.02053787,171.21,171.09,41.618]
[1641231998616,36.28523787,171.21,171.09,41.618]
[1641231999016,35.78523787,171.21,171.09,41.618]
[1641231999216,36.28523787,171.21,171.09,41.618]
[1641231999415,35.78523787,171.21,171.09,41.618]
[1641231999616,35.78523787,171.21,171.09,41.878]
[1641231999917,36.28523787,171.21,171.09,41.878]